[Event "Live Chess"]
[Site "Chess.com"]
[Date "2024.06.01"]
[Round "-"]
[White "Zhevzh1k7"]
[Black "McFim"]
[Result "0-1"]
[WhiteElo "1085"]
[BlackElo "1581"]
[TimeControl "300"]
[EndTime "11:27:11 PDT"]
[Termination "McFim won by checkmate"]

1. e4 {[%clk 0:04:56.5]} 1... c6 {[%clk 0:04:58.6]} 2. d4 {[%clk 0:04:54.9]}
2... d5 {[%clk 0:04:57.6]} 3. f3 {[%clk 0:04:54.5]} 3... dxe4 {[%clk 0:04:54.8]}
4. fxe4 {[%clk 0:04:52.7]} 4... e5 {[%clk 0:04:53.8]} 5. Nf3 {[%clk 0:04:51.8]}
5... Bg4 {[%clk 0:04:50.2]} 6. Be2 {[%clk 0:04:38.3]} 6... Bxf3 {[%clk
0:04:46.4]} 7. gxf3 {[%clk 0:04:32.2]} 7... Qxd4 {[%clk 0:04:43.7]} 8. Qxd4
{[%clk 0:04:30.3]} 8... exd4 {[%clk 0:04:42.3]} 9. Bf4 {[%clk 0:04:27.4]} 9...
Nd7 {[%clk 0:04:38.3]} 10. Nd2 {[%clk 0:04:26]} 10... a6 {[%clk 0:04:36.5]} 11.
O-O-O {[%clk 0:04:24.3]} 11... f6 {[%clk 0:04:27]} 12. Nb3 {[%clk 0:04:19]}
12... c5 {[%clk 0:04:25.1]} 13. Bc4 {[%clk 0:04:06.3]} 13... Ne7 {[%clk
0:04:10.2]} 14. Rhe1 {[%clk 0:04:02]} 14... b5 {[%clk 0:04:07.9]} 15. Be6 {[%clk
0:03:58.4]} 15... Rc8 {[%clk 0:03:58.7]} 16. Bxd7+ {[%clk 0:03:38.6]} 16... Kxd7
{[%clk 0:03:54.8]} 17. e5 {[%clk 0:03:35.5]} 17... f5 {[%clk 0:03:49.9]} 18. e6+
{[%clk 0:03:33.8]} 18... Kc6 {[%clk 0:03:45.8]} 19. Re5 {[%clk 0:03:29.4]} 19...
Nd5 {[%clk 0:03:36]} 20. Bg3 {[%clk 0:03:17.1]} 20... f4 {[%clk 0:03:28.6]} 21.
Bf2 {[%clk 0:03:12.1]} 21... Bd6 {[%clk 0:03:25]} 22. Rf5 {[%clk 0:03:07]} 22...
Ne3 {[%clk 0:03:17.4]} 23. Bxe3 {[%clk 0:03:04.8]} 23... fxe3 {[%clk 0:03:15.9]}
24. Re1 {[%clk 0:02:56.6]} 24... Rce8 {[%clk 0:03:09.2]} 25. Rf7 {[%clk
0:02:42.8]} 25... Rhg8 {[%clk 0:03:05.7]} 26. c3 {[%clk 0:02:39]} 26... dxc3
{[%clk 0:02:54.9]} 27. bxc3 {[%clk 0:02:36.9]} 27... Rxe6 {[%clk 0:02:51.1]} 28.
Na5+ {[%clk 0:02:26.7]} 28... Kb6 {[%clk 0:02:48.8]} 29. Nb3 {[%clk 0:02:13.7]}
29... Bxh2 {[%clk 0:02:41.1]} 30. f4 {[%clk 0:02:02.6]} 30... Rge8 {[%clk
0:02:30.4]} 31. f5 {[%clk 0:01:58]} 31... R6e7 {[%clk 0:02:22.2]} 32. Rxe7
{[%clk 0:01:43]} 32... Rxe7 {[%clk 0:02:20.6]} 33. Kc2 {[%clk 0:01:41]} 33... e2
{[%clk 0:02:15.8]} 34. Nd2 {[%clk 0:01:37.7]} 34... Bg3 {[%clk 0:02:11]} 35. Nf3
{[%clk 0:01:34.4]} 35... Bxe1 {[%clk 0:02:08.5]} 36. Nxe1 {[%clk 0:01:33.1]}
36... Rf7 {[%clk 0:02:04]} 37. Kd2 {[%clk 0:01:31.3]} 37... Rxf5 {[%clk
0:02:02.5]} 38. Kxe2 {[%clk 0:01:31.1]} 38... Re5+ {[%clk 0:02:01.2]} 39. Kd2
{[%clk 0:01:29.9]} 39... Rxe1 {[%clk 0:01:59.7]} 40. Kxe1 {[%clk 0:01:29.8]}
40... h5 {[%clk 0:01:58.2]} 41. Kf2 {[%clk 0:01:28.2]} 41... g5 {[%clk
0:01:57.6]} 42. Kg3 {[%clk 0:01:27.3]} 42... Ka5 {[%clk 0:01:56.6]} 43. Kf3
{[%clk 0:01:26.2]} 43... Ka4 {[%clk 0:01:55.3]} 44. Ke4 {[%clk 0:01:25.8]} 44...
h4 {[%clk 0:01:53.8]} 45. Kf5 {[%clk 0:01:24.9]} 45... h3 {[%clk 0:01:52.5]} 46.
Kxg5 {[%clk 0:01:24.8]} 46... h2 {[%clk 0:01:51.2]} 47. Kf5 {[%clk 0:01:24.7]}
47... h1=Q {[%clk 0:01:49.4]} 48. Ke6 {[%clk 0:01:24.6]} 48... Qc6+ {[%clk
0:01:46.8]} 49. Ke5 {[%clk 0:01:23.4]} 49... Qd7 {[%clk 0:01:44.5]} 50. Ke4
{[%clk 0:01:22.3]} 50... b4 {[%clk 0:01:43.6]} 51. cxb4 {[%clk 0:01:18.7]} 51...
Kxb4 {[%clk 0:01:42.7]} 52. Ke5 {[%clk 0:01:17.6]} 52... Qd4+ {[%clk 0:01:40.1]}
53. Ke6 {[%clk 0:01:16.7]} 53... c4 {[%clk 0:01:39.3]} 54. Kf5 {[%clk
0:01:15.7]} 54... Qe3 {[%clk 0:01:37.5]} 55. Kg4 {[%clk 0:01:14.5]} 55... Qf2
{[%clk 0:01:36.5]} 56. Kh3 {[%clk 0:01:12.8]} 56... Qg1 {[%clk 0:01:35.5]} 57.
a3+ {[%clk 0:01:11.2]} 57... Kc3 {[%clk 0:01:33.2]} 58. a4 {[%clk 0:01:10.7]}
58... Kd4 {[%clk 0:01:32.6]} 59. a5 {[%clk 0:01:10.1]} 59... Ke4 {[%clk
0:01:31.9]} 60. Kh4 {[%clk 0:01:10]} 60... Kf5 {[%clk 0:01:30.5]} 61. Kh5 {[%clk
0:01:09.9]} 61... Qg5# {[%clk 0:01:28.9]} 0-1

[Event "Live Chess"]
[Site "Chess.com"]
[Date "2024.06.01"]
[Round "-"]
[White "nigelst"]
[Black "peteopeteo"]
[Result "1-0"]
[WhiteElo "1673"]
[BlackElo "1599"]
[TimeControl "300"]
[EndTime "11:27:17 PDT"]
[Termination "nigelst won by resignation"]

1. e4 {[%clk 0:04:57.9]} 1... c6 {[%clk 0:04:59.3]} 2. d4 {[%clk 0:04:55.7]}
2... d5 {[%clk 0:04:59.2]} 3. exd5 {[%clk 0:04:54.2]} 3... cxd5 {[%clk
0:04:59.1]} 4. Bd3 {[%clk 0:04:53.2]} 4... Nf6 {[%clk 0:04:58.8]} 5. c3 {[%clk
0:04:51.7]} 5... Nc6 {[%clk 0:04:58.3]} 6. Bf4 {[%clk 0:04:50.9]} 6... Qb6
{[%clk 0:04:53.9]} 7. Qb3 {[%clk 0:04:47.8]} 7... Qxb3 {[%clk 0:04:52.3]} 8.
axb3 {[%clk 0:04:46.7]} 8... e6 {[%clk 0:04:48.1]} 9. Nf3 {[%clk 0:04:44.1]}
9... h6 {[%clk 0:04:44.5]} 10. O-O {[%clk 0:04:41.9]} 10... Be7 {[%clk
0:04:43.1]} 11. Nbd2 {[%clk 0:04:38.7]} 11... O-O {[%clk 0:04:42.3]} 12. Ne5
{[%clk 0:04:37.7]} 12... Nxe5 {[%clk 0:04:40.5]} 13. Bxe5 {[%clk 0:04:36.3]}
13... Nd7 {[%clk 0:04:39.7]} 14. Bg3 {[%clk 0:04:33.7]} 14... Bf6 {[%clk
0:04:34.5]} 15. Nf3 {[%clk 0:04:32]} 15... Re8 {[%clk 0:04:32.2]} 16. Rfe1
{[%clk 0:04:31.3]} 16... a6 {[%clk 0:04:25.7]} 17. Ne5 {[%clk 0:04:27.5]} 17...
Nxe5 {[%clk 0:04:24.5]} 18. Bxe5 {[%clk 0:04:26.1]} 18... Bxe5 {[%clk
0:04:23.1]} 19. Rxe5 {[%clk 0:04:25]} 19... Bd7 {[%clk 0:04:18]} 20. Rae1 {[%clk
0:04:22.5]} 20... Bb5 {[%clk 0:04:14.2]} 21. Bxb5 {[%clk 0:04:20]} 21... axb5
{[%clk 0:04:14.1]} 22. g3 {[%clk 0:04:17.3]} 22... Ra2 {[%clk 0:04:13.2]} 23.
Rxd5 {[%clk 0:04:13.5]} 23... Rxb2 {[%clk 0:04:10.4]} 24. Rxb5 {[%clk
0:04:11.5]} 24... Rc8 {[%clk 0:04:09.3]} 25. Re3 {[%clk 0:04:06.2]} 25... Rc2
{[%clk 0:04:07.4]} 26. c4 {[%clk 0:04:02.1]} 26... Rd2 {[%clk 0:04:05.2]} 27.
Re4 {[%clk 0:03:58.4]} 27... Rd8 {[%clk 0:04:04.1]} 28. Rxb7 {[%clk 0:03:53.8]}
28... R2xd4 {[%clk 0:04:02.8]} 29. Rxd4 {[%clk 0:03:52.4]} 29... Rxd4 {[%clk
0:04:02.7]} 30. c5 {[%clk 0:03:49.3]} 30... Rd8 {[%clk 0:03:59.4]} 31. c6 {[%clk
0:03:47.7]} 31... Rc8 {[%clk 0:03:58.1]} 32. c7 {[%clk 0:03:46.4]} 32... Kh7
{[%clk 0:03:58]} 33. b4 {[%clk 0:03:44.3]} 33... Kg6 {[%clk 0:03:57.3]} 34. b5
{[%clk 0:03:43.6]} 34... Kf6 {[%clk 0:03:56.6]} 35. b6 {[%clk 0:03:43.1]} 35...
Ke5 {[%clk 0:03:55.7]} 36. Rb8 {[%clk 0:03:42.1]} 36... Rxb8 {[%clk 0:03:50.3]}
37. cxb8=Q+ {[%clk 0:03:40.2]} 1-0

[Event "Live Chess"]
[Site "Chess.com"]
[Date "2024.06.01"]
[Round "-"]
[White "Queensandpawns"]
[Black "updatedopenings2024"]
[Result "1-0"]
[WhiteElo "2451"]
[BlackElo "1938"]
[TimeControl "300"]
[EndTime "11:27:23 PDT"]
[Termination "Queensandpawns won by resignation"]

1. e4 {[%clk 0:04:55.1]} 1... c6 {[%clk 0:04:58.9]} 2. d4 {[%clk 0:04:54.3]}
2... d5 {[%clk 0:04:58.8]} 3. Nc3 {[%clk 0:04:53.9]} 3... dxe4 {[%clk
0:04:57.9]} 4. Nxe4 {[%clk 0:04:53.8]} 4... Nf6 {[%clk 0:04:57.8]} 5. Ng5 {[%clk
0:04:53.4]} 5... h6 {[%clk 0:04:55]} 6. Nxf7 {[%clk 0:04:53.1]} 6... Kxf7 {[%clk
0:04:54.9]} 7. Nf3 {[%clk 0:04:52.3]} 7... c5 {[%clk 0:04:54.3]} 8. d5 {[%clk
0:04:51.7]} 8... Qxd5 {[%clk 0:04:47]} 9. Bc4 {[%clk 0:04:50.9]} 9... e6 {[%clk
0:04:26.9]} 10. Bxd5 {[%clk 0:04:49.2]} 10... exd5 {[%clk 0:04:26.8]} 11. O-O
{[%clk 0:04:48.3]} 11... Nc6 {[%clk 0:04:26.2]} 12. Re1 {[%clk 0:04:45.5]} 12...
Bg4 {[%clk 0:04:25.9]} 13. h3 {[%clk 0:04:44]} 13... Bxf3 {[%clk 0:04:21.5]} 14.
Qxf3 {[%clk 0:04:43.9]} 14... Bd6 {[%clk 0:04:21.2]} 15. Bf4 {[%clk 0:04:42.7]}
15... Nd4 {[%clk 0:04:20.2]} 16. Qg3 {[%clk 0:04:34.3]} 16... Nh5 {[%clk
0:04:17.9]} 17. Qg4 {[%clk 0:04:13.7]} 17... Nxf4 {[%clk 0:04:15.1]} 18. Qd7+
{[%clk 0:04:12.7]} 18... Kf6 {[%clk 0:03:59.4]} 19. Qxd6+ {[%clk 0:04:11.1]}
19... Nfe6 {[%clk 0:03:59.3]} 20. c3 {[%clk 0:04:07]} 1-0

[Event "Live Chess"]
[Site "Chess.com"]
[Date "2024.06.01"]
[Round "-"]
[White "JanMur7"]
[Black "TigerTank70"]
[Result "0-1"]
[WhiteElo "2268"]
[BlackElo "2215"]
[TimeControl "300"]
[EndTime "11:27:35 PDT"]
[Termination "TigerTank70 won on time"]

1. c4 {[%clk 0:04:58.6]} 1... e5 {[%clk 0:04:59]} 2. Nc3 {[%clk 0:04:57.1]} 2...
Nc6 {[%clk 0:04:58.6]} 3. Nf3 {[%clk 0:04:53.6]} 3... Nf6 {[%clk 0:04:58.2]} 4.
e4 {[%clk 0:04:51.1]} 4... Bc5 {[%clk 0:04:55.5]} 5. Nxe5 {[%clk 0:04:49.9]}
5... Bxf2+ {[%clk 0:04:53.5]} 6. Kxf2 {[%clk 0:04:49.8]} 6... Nxe5 {[%clk
0:04:51.3]} 7. d4 {[%clk 0:04:49.7]} 7... Nc6 {[%clk 0:04:46.5]} 8. e5 {[%clk
0:04:48]} 8... Ng8 {[%clk 0:04:41.6]} 9. Qg4 {[%clk 0:04:44.6]} 9... Kf8 {[%clk
0:04:35.5]} 10. Qe4 {[%clk 0:04:38.9]} 10... d6 {[%clk 0:04:28.9]} 11. exd6
{[%clk 0:04:24.4]} 11... cxd6 {[%clk 0:04:19.5]} 12. d5 {[%clk 0:04:17.3]} 12...
Nf6 {[%clk 0:04:10.5]} 13. Qf4 {[%clk 0:04:06.2]} 13... Ng4+ {[%clk 0:04:04.6]}
14. Ke1 {[%clk 0:03:52.7]} 14... Qe7+ {[%clk 0:03:44]} 15. Be2 {[%clk
0:03:49.5]} 15... Nce5 {[%clk 0:03:30.7]} 16. Kd1 {[%clk 0:03:27.3]} 16... Ng6
{[%clk 0:03:20.4]} 17. Qf3 {[%clk 0:03:20.6]} 17... N4e5 {[%clk 0:03:16.3]} 18.
Qf2 {[%clk 0:03:18.8]} 18... Bg4 {[%clk 0:03:07.3]} 19. Rf1 {[%clk 0:03:14.5]}
19... f6 {[%clk 0:03:01.5]} 20. h3 {[%clk 0:03:02.9]} 20... Bxe2+ {[%clk
0:02:57.6]} 21. Qxe2 {[%clk 0:03:02.8]} 21... Rc8 {[%clk 0:02:56.7]} 22. b3
{[%clk 0:02:59.5]} 22... Re8 {[%clk 0:02:53.6]} 23. Ba3 {[%clk 0:02:54.8]} 23...
Qd7 {[%clk 0:02:19.4]} 24. Ne4 {[%clk 0:02:28.5]} 24... Nf7 {[%clk 0:02:17.4]}
25. Qf3 {[%clk 0:02:14.9]} 25... Nge5 {[%clk 0:02:14.3]} 26. Qf5 {[%clk
0:02:12.5]} 26... Qc7 {[%clk 0:02:05.7]} 27. g4 {[%clk 0:01:54.5]} 27... Nd7
{[%clk 0:01:15.5]} 28. g5 {[%clk 0:01:42.4]} 28... g6 {[%clk 0:01:12.7]} 29. Qf4
{[%clk 0:01:36.1]} 29... Re5 {[%clk 0:01:04.4]} 30. Nxf6 {[%clk 0:01:01.9]}
30... Rf5 {[%clk 0:00:55.6]} 31. Qxf5 {[%clk 0:00:37.5]} 31... gxf5 {[%clk
0:00:52.3]} 32. Rxf5 {[%clk 0:00:37.4]} 32... Nxf6 {[%clk 0:00:43.5]} 33. Rxf6
{[%clk 0:00:37.3]} 33... Kg7 {[%clk 0:00:38.1]} 34. Bb2 {[%clk 0:00:34]} 34...
Ne5 {[%clk 0:00:36.3]} 35. Kc2 {[%clk 0:00:32.4]} 35... h6 {[%clk 0:00:29.5]}
36. Raf1 {[%clk 0:00:22.5]} 36... hxg5 {[%clk 0:00:27.5]} 37. R6f5 {[%clk
0:00:21.3]} 37... Qe7 {[%clk 0:00:19.6]} 38. Rg1 {[%clk 0:00:18.1]} 38... Rh5
{[%clk 0:00:16.1]} 39. h4 {[%clk 0:00:15.9]} 39... Rxh4 {[%clk 0:00:15]} 40.
Rfxg5+ {[%clk 0:00:14.3]} 40... Kh6 {[%clk 0:00:13.5]} 41. Bxe5 {[%clk
0:00:13.6]} 41... dxe5 {[%clk 0:00:12.3]} 42. R5g2 {[%clk 0:00:11.8]} 42... Qf6
{[%clk 0:00:10.7]} 43. Re1 {[%clk 0:00:10]} 43... Qf5+ {[%clk 0:00:09.9]} 44.
Kc1 {[%clk 0:00:08.8]} 44... Qf4+ {[%clk 0:00:08.1]} 45. Rd2 {[%clk 0:00:08.4]}
45... e4 {[%clk 0:00:08]} 46. Rd1 {[%clk 0:00:08]} 46... e3 {[%clk 0:00:07.4]}
47. Re2 {[%clk 0:00:07]} 47... Rh2 {[%clk 0:00:06.8]} 48. Rde1 {[%clk
0:00:06.9]} 48... Rxe2 {[%clk 0:00:05.4]} 49. Rxe2 {[%clk 0:00:06.8]} 49... Qf1+
{[%clk 0:00:05.2]} 50. Kb2 {[%clk 0:00:04.8]} 50... Qxe2+ {[%clk 0:00:05.1]} 51.
Ka3 {[%clk 0:00:04.7]} 51... Qd3 {[%clk 0:00:04.4]} 52. d6 {[%clk 0:00:04.6]}
52... e2 {[%clk 0:00:04]} 53. d7 {[%clk 0:00:04.5]} 53... Qxd7 {[%clk
0:00:03.4]} 54. c5 {[%clk 0:00:03.3]} 54... Qd6 {[%clk 0:00:03.3]} 55. cxd6
{[%clk 0:00:01.6]} 55... e1=Q {[%clk 0:00:03.2]} 56. d7 {[%clk 0:00:00.9]} 56...
Qd2 {[%clk 0:00:02.8]} 57. d8=Q {[%clk 0:00:00.8]} 57... Qxd8 {[%clk 0:00:02.3]}
58. Ka4 {[%clk 0:00:00.7]} 58... Qd7+ {[%clk 0:00:01.4]} 59. Kb4 {[%clk
0:00:00.6]} 59... Qd6+ {[%clk 0:00:01]} 60. Ka4 {[%clk 0:00:00.5]} 60... Qd5
{[%clk 0:00:00.7]} 61. Ka3 {[%clk 0:00:00.4]} 61... Qd4 {[%clk 0:00:00.4]} 0-1

[Event "Live Chess"]
[Site "Chess.com"]
[Date "2024.06.01"]
[Round "-"]
[White "NeilDruggan73"]
[Black "WeakOldFinished"]
[Result "0-1"]
[WhiteElo "1717"]
[BlackElo "2082"]
[TimeControl "300"]
[EndTime "11:27:35 PDT"]
[Termination "WeakOldFinished won by resignation"]

1. d4 {[%clk 0:04:56.8]} 1... d5 {[%clk 0:04:56.7]} 2. Bg5 {[%clk 0:04:54.4]}
2... h6 {[%clk 0:04:52.7]} 3. Bh4 {[%clk 0:04:52.4]} 3... c5 {[%clk 0:04:51.6]}
4. e3 {[%clk 0:04:49.1]} 4... Nc6 {[%clk 0:04:49.5]} 5. Bb5 {[%clk 0:04:43.1]}
5... Qb6 {[%clk 0:04:44.4]} 6. Bxc6+ {[%clk 0:04:40.6]} 6... bxc6 {[%clk
0:04:41.8]} 7. Nd2 {[%clk 0:04:38.1]} 7... cxd4 {[%clk 0:04:38.7]} 8. exd4
{[%clk 0:04:35.5]} 8... Qxb2 {[%clk 0:04:37.2]} 9. Ngf3 {[%clk 0:04:34.4]} 9...
Ba6 {[%clk 0:04:27.7]} 10. Rb1 {[%clk 0:04:27]} 10... Qa3 {[%clk 0:04:18.4]} 11.
Bg3 {[%clk 0:04:21]} 11... Nf6 {[%clk 0:04:15.3]} 12. Nb3 {[%clk 0:04:10.7]}
12... e6 {[%clk 0:04:09.3]} 13. Ne5 {[%clk 0:04:01.4]} 13... Bb4+ {[%clk
0:04:04.8]} 14. Nd2 {[%clk 0:03:55]} 14... Ne4 {[%clk 0:04:01.7]} 15. Bf4 {[%clk
0:03:44.9]} 15... g5 {[%clk 0:03:22.6]} 16. Qh5 {[%clk 0:03:15.6]} 16... Rf8
{[%clk 0:03:16.5]} 17. Be3 {[%clk 0:02:55.6]} 17... Qa5 {[%clk 0:01:49.7]} 18.
Rd1 {[%clk 0:02:17.2]} 18... Qc7 {[%clk 0:01:28.2]} 19. Qxh6 {[%clk 0:02:06.8]}
19... c5 {[%clk 0:01:18.4]} 20. Qg7 {[%clk 0:01:08]} 20... cxd4 {[%clk
0:01:11.6]} 21. Ng6 {[%clk 0:01:04.6]} 21... dxe3 {[%clk 0:01:05.2]} 22. fxe3
{[%clk 0:00:51.4]} 22... Qc3 {[%clk 0:00:48.3]} 23. Nxf8 {[%clk 0:00:40.5]}
23... Qxg7 {[%clk 0:00:45.8]} 24. Nxe6 {[%clk 0:00:34.5]} 24... fxe6 {[%clk
0:00:44.1]} 0-1

[Event "Live Chess"]
[Site "Chess.com"]
[Date "2024.06.01"]
[Round "-"]
[White "educatedlad"]
[Black "powerchs"]
[Result "1-0"]
[WhiteElo "1763"]
[BlackElo "1250"]
[TimeControl "300"]
[EndTime "11:27:35 PDT"]
[Termination "educatedlad won by resignation"]

1. e4 {[%clk 0:04:58.6]} 1... c5 {[%clk 0:04:58.3]} 2. Nf3 {[%clk 0:04:56.9]}
2... d6 {[%clk 0:04:57.2]} 3. d4 {[%clk 0:04:55.9]} 3... cxd4 {[%clk 0:04:55.7]}
4. Nxd4 {[%clk 0:04:55.8]} 4... g6 {[%clk 0:04:53.9]} 5. c4 {[%clk 0:04:53.2]}
5... Bg7 {[%clk 0:04:52.6]} 6. Nc3 {[%clk 0:04:52.3]} 6... Nf6 {[%clk
0:04:48.7]} 7. Be3 {[%clk 0:04:51.8]} 7... O-O {[%clk 0:04:47]} 8. Be2 {[%clk
0:04:50.4]} 8... e6 {[%clk 0:04:43.3]} 9. O-O {[%clk 0:04:48]} 9... e5 {[%clk
0:04:40]} 10. Ndb5 {[%clk 0:04:45.4]} 10... a6 {[%clk 0:04:38.5]} 11. Nxd6
{[%clk 0:04:43.4]} 11... Qc7 {[%clk 0:04:28.3]} 12. Nxc8 {[%clk 0:04:41.2]}
12... Qxc8 {[%clk 0:04:26.7]} 13. Rc1 {[%clk 0:04:38.6]} 13... Nc6 {[%clk
0:04:25.8]} 14. Nd5 {[%clk 0:04:37.7]} 14... Nxd5 {[%clk 0:04:22.6]} 15. cxd5
{[%clk 0:04:37.6]} 1-0

[Event "Live Chess"]
[Site "Chess.com"]
[Date "2024.06.01"]
[Round "-"]
[White "MellowAesthetic"]
[Black "Colm_Buckley"]
[Result "1-0"]
[WhiteElo "2068"]
[BlackElo "1808"]
[TimeControl "300"]
[EndTime "11:27:37 PDT"]
[Termination "MellowAesthetic won on time"]

1. e4 {[%clk 0:04:58]} 1... e6 {[%clk 0:04:58.6]} 2. d4 {[%clk 0:04:56.4]} 2...
d5 {[%clk 0:04:58]} 3. Nd2 {[%clk 0:04:55.5]} 3... c5 {[%clk 0:04:55.6]} 4. exd5
{[%clk 0:04:53.8]} 4... exd5 {[%clk 0:04:54.2]} 5. Ngf3 {[%clk 0:04:52.6]} 5...
Nc6 {[%clk 0:04:53.2]} 6. Bb5 {[%clk 0:04:49.9]} 6... a6 {[%clk 0:04:49.1]} 7.
Bxc6+ {[%clk 0:04:47.1]} 7... bxc6 {[%clk 0:04:48.2]} 8. O-O {[%clk 0:04:46.7]}
8... cxd4 {[%clk 0:04:40.9]} 9. Nxd4 {[%clk 0:04:42.8]} 9... Be7 {[%clk
0:04:37.7]} 10. Nxc6 {[%clk 0:04:41.1]} 10... Qd6 {[%clk 0:04:34.7]} 11. Nxe7
{[%clk 0:04:36.3]} 11... Nxe7 {[%clk 0:04:33.4]} 12. Nf3 {[%clk 0:04:29.6]}
12... Bg4 {[%clk 0:04:21.6]} 13. Bg5 {[%clk 0:04:13.3]} 13... f6 {[%clk
0:04:12.8]} 14. Bh4 {[%clk 0:04:12.4]} 14... O-O {[%clk 0:04:11.9]} 15. Bg3
{[%clk 0:04:05.7]} 15... Qb4 {[%clk 0:03:57.3]} 16. Re1 {[%clk 0:04:02.1]} 16...
Rfe8 {[%clk 0:03:45.2]} 17. Qd4 {[%clk 0:03:50.6]} 17... Qxd4 {[%clk 0:03:34.2]}
18. Nxd4 {[%clk 0:03:48.9]} 18... Kf7 {[%clk 0:03:24.5]} 19. h3 {[%clk 0:03:41]}
19... Bh5 {[%clk 0:03:23]} 20. c3 {[%clk 0:03:37.3]} 20... Ra7 {[%clk
0:03:08.1]} 21. Bd6 {[%clk 0:03:20.2]} 21... Rb7 {[%clk 0:02:52.1]} 22. b4
{[%clk 0:02:54.7]} 22... Bg6 {[%clk 0:02:43.4]} 23. g4 {[%clk 0:02:35.2]} 23...
Rc8 {[%clk 0:02:19]} 24. Bc5 {[%clk 0:01:58.9]} 24... h5 {[%clk 0:02:10.5]} 25.
a4 {[%clk 0:01:38.5]} 25... hxg4 {[%clk 0:02:08.2]} 26. hxg4 {[%clk 0:01:37.2]}
26... Nc6 {[%clk 0:02:02.4]} 27. Re3 {[%clk 0:01:07.1]} 27... Ne5 {[%clk
0:01:32.3]} 28. f3 {[%clk 0:01:02.9]} 28... Nc6 {[%clk 0:01:17.9]} 29. Rae1
{[%clk 0:00:58.6]} 29... Nxd4 {[%clk 0:01:16.3]} 30. Bxd4 {[%clk 0:00:57.7]}
30... Rcc7 {[%clk 0:01:07.6]} 31. Bc5 {[%clk 0:00:56.7]} 31... f5 {[%clk
0:00:49.1]} 32. g5 {[%clk 0:00:53.7]} 32... f4 {[%clk 0:00:47.7]} 33. Re8 {[%clk
0:00:48.5]} 33... Be4 {[%clk 0:00:31.3]} 34. Rf8+ {[%clk 0:00:45.7]} 34... Kg6
{[%clk 0:00:29.8]} 35. fxe4 {[%clk 0:00:44.8]} 35... dxe4 {[%clk 0:00:26.6]} 36.
Rxf4 {[%clk 0:00:42.1]} 36... Kxg5 {[%clk 0:00:25.4]} 37. Rfxe4 {[%clk
0:00:40.6]} 37... Rf7 {[%clk 0:00:20.2]} 38. R1e2 {[%clk 0:00:36.7]} 38... Rf3
{[%clk 0:00:16.6]} 39. R4e3 {[%clk 0:00:34.6]} 39... Rbf7 {[%clk 0:00:13.5]} 40.
Rxf3 {[%clk 0:00:32.7]} 40... Rxf3 {[%clk 0:00:13.2]} 41. Rg2+ {[%clk
0:00:32.1]} 41... Kf6 {[%clk 0:00:11.5]} 42. Rf2 {[%clk 0:00:31.1]} 42... Rxf2
{[%clk 0:00:09.9]} 43. Kxf2 {[%clk 0:00:30.5]} 43... Ke6 {[%clk 0:00:09.6]} 44.
b5 {[%clk 0:00:24.2]} 44... axb5 {[%clk 0:00:07.3]} 45. axb5 {[%clk 0:00:23.7]}
45... Kd7 {[%clk 0:00:05.3]} 46. c4 {[%clk 0:00:20.9]} 46... g5 {[%clk
0:00:04.5]} 47. Kg3 {[%clk 0:00:20.1]} 47... g4 {[%clk 0:00:03.9]} 48. Kxg4
{[%clk 0:00:19.4]} 48... Kc8 {[%clk 0:00:03.8]} 49. Kf5 {[%clk 0:00:18.5]} 49...
Kb7 {[%clk 0:00:03.5]} 50. Ke6 {[%clk 0:00:17.8]} 50... Kc7 {[%clk 0:00:03.3]}
51. Kd5 {[%clk 0:00:16.6]} 51... Kb7 {[%clk 0:00:02.9]} 52. Bd4 {[%clk
0:00:15.5]} 52... Kc7 {[%clk 0:00:02.1]} 53. c5 {[%clk 0:00:15]} 53... Kb7
{[%clk 0:00:01.7]} 54. Be5 {[%clk 0:00:13.9]} 54... Kc8 {[%clk 0:00:00.5]} 55.
Kc6 {[%clk 0:00:12.7]} 1-0